[Event "*** Titled Tuesday 3|2 Blitz"]
[Site "Chess.com"]
[Date "2016.06.07"]
[Round "8"]
[White "Grootneus"]
[Black "SCIM"]
[Result "1/2-1/2"]
[WhiteElo "2098"]
[BlackElo "2276"]
[TimeControl "180+2"]
[EndTime "12:42:30 PDT"]
[Termination "Game drawn - insufficient material"]

1. e4 {[%clk 0:03:01.9]} 1... c5 {[%clk 0:02:56.5]} 2. c3 {[%clk 0:02:59.5]}
2... Nf6 {[%clk 0:02:56.5]} 3. e5 {[%clk 0:03:00.5]} 3... Nd5 {[%clk 0:02:57.1]}
4. Nf3 {[%clk 0:03:02.1]} 4... e6 {[%clk 0:02:56.7]} 5. Bc4 {[%clk 0:03:03.5]}
5... d6 {[%clk 0:02:56.7]} 6. d4 {[%clk 0:03:00.9]} 6... cxd4 {[%clk 0:02:55.6]}
7. cxd4 {[%clk 0:03:02.8]} 7... Be7 {[%clk 0:02:56.4]} 8. O-O {[%clk 0:03:04.1]}
8... O-O {[%clk 0:02:56.8]} 9. Qe2 {[%clk 0:03:05.5]} 9... b6 {[%clk 0:02:58.1]}
10. Nc3 {[%clk 0:03:03.7]} 10... Nxc3 {[%clk 0:02:52.4]} 11. bxc3 {[%clk
0:03:05.6]} 11... Bb7 {[%clk 0:02:53.5]} 12. Bd3 {[%clk 0:03:02.1]} 12... Nd7
{[%clk 0:02:53.5]} 13. Re1 {[%clk 0:03:01.5]} 13... Qc7 {[%clk 0:02:52.1]} 14.
Bd2 {[%clk 0:03:01.2]} 14... Rfe8 {[%clk 0:02:40.6]} 15. Ng5 {[%clk 0:02:40.1]}
15... Bxg5 {[%clk 0:02:26.4]} 16. Bxg5 {[%clk 0:02:42]} 16... dxe5 {[%clk
0:02:26.6]} 17. dxe5 {[%clk 0:02:38]} 17... h6 {[%clk 0:02:17.9]} 18. Bd2 {[%clk
0:02:32.8]} 18... Rad8 {[%clk 0:02:17.8]} 19. Bxh6 {[%clk 0:01:44]} 19... Nxe5
{[%clk 0:01:40.9]} 20. Bc2 {[%clk 0:00:45.9]} 20... gxh6 {[%clk 0:01:02.1]} 21.
Qxe5 {[%clk 0:00:45.5]} 21... Qxe5 {[%clk 0:01:02.9]} 22. Rxe5 {[%clk
0:00:47.4]} 22... Rd2 {[%clk 0:01:03.6]} 23. Be4 {[%clk 0:00:43.5]} 23... Re2
{[%clk 0:01:03.8]} 24. Bh7+ {[%clk 0:00:30.1]} 24... Kxh7 {[%clk 0:01:01.8]} 25.
Rxe2 {[%clk 0:00:32]} 25... Rd8 {[%clk 0:00:58.9]} 26. f3 {[%clk 0:00:24.9]}
26... Rd3 {[%clk 0:00:56.5]} 27. Rc1 {[%clk 0:00:25.5]} 27... Rd5 {[%clk
0:00:56.2]} 28. Kf2 {[%clk 0:00:24.5]} 28... Kg7 {[%clk 0:00:55.5]} 29. Rcc2
{[%clk 0:00:22.8]} 29... Rc5 {[%clk 0:00:53.4]} 30. Red2 {[%clk 0:00:20.5]}
30... Bd5 {[%clk 0:00:54.1]} 31. a3 {[%clk 0:00:20.8]} 31... Bb3 {[%clk
0:00:46.6]} 32. Rc1 {[%clk 0:00:21.7]} 32... Ra5 {[%clk 0:00:44.6]} 33. c4
{[%clk 0:00:17.4]} 33... Rxa3 {[%clk 0:00:39]} 34. Rc3 {[%clk 0:00:17.7]} 34...
a5 {[%clk 0:00:40.3]} 35. c5 {[%clk 0:00:13.7]} 35... bxc5 {[%clk 0:00:40.2]}
36. Rxc5 {[%clk 0:00:15.6]} 36... a4 {[%clk 0:00:40.8]} 37. Kg3 {[%clk
0:00:14.9]} 37... Ra1 {[%clk 0:00:40.6]} 38. Rd7 {[%clk 0:00:15.5]} 38... Re1
{[%clk 0:00:32]} 39. Rcc7 {[%clk 0:00:15.4]} 39... e5 {[%clk 0:00:32]} 40. Ra7
{[%clk 0:00:16.9]} 40... Re2 {[%clk 0:00:28.9]} 41. Rdc7 {[%clk 0:00:15.6]}
41... h5 {[%clk 0:00:23]} 42. h4 {[%clk 0:00:15.2]} 42... Kg6 {[%clk 0:00:21.8]}
43. Rc5 {[%clk 0:00:15.5]} 43... Re1 {[%clk 0:00:17.5]} 44. Raa5 {[%clk
0:00:16.1]} 44... f6 {[%clk 0:00:14.8]} 45. Rc6 {[%clk 0:00:15.3]} 45... e4
{[%clk 0:00:11.1]} 46. fxe4 {[%clk 0:00:11.5]} 46... Rxe4 {[%clk 0:00:10.7]} 47.
Raa6 {[%clk 0:00:10.5]} 47... Rg4+ {[%clk 0:00:10.4]} 48. Kf2 {[%clk 0:00:11.1]}
48... Rf4+ {[%clk 0:00:09.6]} 49. Ke3 {[%clk 0:00:11.1]} 49... Rf5 {[%clk
0:00:08.6]} 50. g3 {[%clk 0:00:11.4]} 50... Rf1 {[%clk 0:00:08.3]} 51. Ke2
{[%clk 0:00:08.5]} 51... Rf5 {[%clk 0:00:06.4]} 52. Ke3 {[%clk 0:00:09.3]} 52...
Bd5 {[%clk 0:00:06.7]} 53. Rd6 {[%clk 0:00:10]} 53... Rf3+ {[%clk 0:00:06.5]}
54. Ke2 {[%clk 0:00:10.2]} 54... Bb7 {[%clk 0:00:05.2]} 55. Rxa4 {[%clk
0:00:06.5]} 55... Rxg3 {[%clk 0:00:06]} 56. Rf4 {[%clk 0:00:06.8]} 56... Rg4
{[%clk 0:00:03]} 57. Rdxf6+ {[%clk 0:00:05]} 57... Kh7 {[%clk 0:00:03.6]} 58.
Rxg4 {[%clk 0:00:06.2]} 58... hxg4 {[%clk 0:00:03.7]} 59. Kf2 {[%clk 0:00:07.4]}
59... Bf3 {[%clk 0:00:02.4]} 60. Rb6 {[%clk 0:00:08.7]} 60... Kg7 {[%clk
0:00:03.5]} 61. Kg3 {[%clk 0:00:10.6]} 61... Kh7 {[%clk 0:00:04.8]} 62. Kf4
{[%clk 0:00:11.6]} 62... Kg7 {[%clk 0:00:06.4]} 63. Kg5 {[%clk 0:00:10]} 63...
Kh7 {[%clk 0:00:04.9]} 64. h5 {[%clk 0:00:11.3]} 64... Kg7 {[%clk 0:00:06]} 65.
Ra6 {[%clk 0:00:11.1]} 65... Be2 {[%clk 0:00:05.7]} 66. Ra7+ {[%clk 0:00:12.1]}
66... Kg8 {[%clk 0:00:06.5]} 67. h6 {[%clk 0:00:13]} 67... g3 {[%clk 0:00:06.5]}
68. Ra2 {[%clk 0:00:13.7]} 68... Bf3 {[%clk 0:00:06.4]} 69. Kf4 {[%clk
0:00:12.2]} 69... g2 {[%clk 0:00:07.1]} 70. Ra1 {[%clk 0:00:13.2]} 70... Be2
{[%clk 0:00:07.3]} 71. Kg3 {[%clk 0:00:04.7]} 71... Bf1 {[%clk 0:00:07.8]} 72.
Kf2 {[%clk 0:00:06]} 72... Kh7 {[%clk 0:00:08.5]} 73. Rxf1 {[%clk 0:00:04.7]}
73... gxf1=Q+ {[%clk 0:00:06]} 74. Kxf1 {[%clk 0:00:06.6]} 74... Kxh6 {[%clk
0:00:07.3]} 1/2-1/2

[Event "*** Titled Tuesday 3|2 Blitz"]
[Site "Chess.com"]
[Date "2016.06.07"]
[Round "8"]
[White "viktorskliarov"]
[Black "GianmarcoVaR"]
[Result "1/2-1/2"]
[WhiteElo "2351"]
[BlackElo "2332"]
[TimeControl "180+2"]
[EndTime "12:44:25 PDT"]
[Termination "Game drawn - insufficient material"]

1. e4 {[%clk 0:03:01.9]} 1... c5 {[%clk 0:02:58.3]} 2. Nf3 {[%clk 0:03:02.8]}
2... d6 {[%clk 0:02:59.4]} 3. d4 {[%clk 0:03:03.4]} 3... cxd4 {[%clk 0:02:58.7]}
4. Qxd4 {[%clk 0:03:04.4]} 4... Nf6 {[%clk 0:03:00.6]} 5. Nc3 {[%clk 0:03:05.2]}
5... a6 {[%clk 0:03:00.7]} 6. Be3 {[%clk 0:03:05.5]} 6... Nc6 {[%clk 0:03:01.9]}
7. Qd2 {[%clk 0:03:07.1]} 7... e6 {[%clk 0:02:59.4]} 8. O-O-O {[%clk 0:03:07.8]}
8... Qc7 {[%clk 0:02:56.6]} 9. Bf4 {[%clk 0:03:05.2]} 9... Ng4 {[%clk
0:02:29.7]} 10. h3 {[%clk 0:02:45.4]} 10... Nge5 {[%clk 0:02:29.8]} 11. Nxe5
{[%clk 0:02:37.4]} 11... dxe5 {[%clk 0:02:30.9]} 12. Bh2 {[%clk 0:02:29.7]}
12... Bb4 {[%clk 0:02:29.6]} 13. a3 {[%clk 0:02:26.8]} 13... Be7 {[%clk
0:02:25.2]} 14. f4 {[%clk 0:02:25.8]} 14... O-O {[%clk 0:02:23.4]} 15. g4 {[%clk
0:02:26]} 15... Rd8 {[%clk 0:02:15.8]} 16. Bd3 {[%clk 0:02:25.2]} 16... exf4
{[%clk 0:02:12.2]} 17. Bxf4 {[%clk 0:02:24.2]} 17... Bd6 {[%clk 0:02:11.7]} 18.
Bxd6 {[%clk 0:01:41]} 18... Qxd6 {[%clk 0:02:10.6]} 19. e5 {[%clk 0:01:42.1]}
19... Qxe5 {[%clk 0:02:08.3]} 20. Rhe1 {[%clk 0:01:36.5]} 20... Qa5 {[%clk
0:01:42.1]} 21. Qf4 {[%clk 0:01:30.4]} 21... Bd7 {[%clk 0:01:30.2]} 22. Ne4
{[%clk 0:01:26.6]} 22... Be8 {[%clk 0:01:23.9]} 23. Ng5 {[%clk 0:01:25.9]} 23...
h6 {[%clk 0:01:20.5]} 24. Nf3 {[%clk 0:01:12.8]} 24... Rd5 {[%clk 0:01:15.1]}
25. Qe4 {[%clk 0:01:12.3]} 25... g6 {[%clk 0:01:09.7]} 26. Qf4 {[%clk
0:01:11.7]} 26... Kg7 {[%clk 0:01:08.7]} 27. Be4 {[%clk 0:01:10.3]} 27... Rxd1+
{[%clk 0:01:09.3]} 28. Rxd1 {[%clk 0:01:11.1]} 28... Rd8 {[%clk 0:01:10.8]} 29.
Rf1 {[%clk 0:00:58]} 29... f5 {[%clk 0:00:39.8]} 30. gxf5 {[%clk 0:00:52.9]}
30... exf5 {[%clk 0:00:40.7]} 31. Bd3 {[%clk 0:00:50.6]} 31... Qc5 {[%clk
0:00:30.5]} 32. Kb1 {[%clk 0:00:46.2]} 32... Qd6 {[%clk 0:00:24.8]} 33. Qh4
{[%clk 0:00:46.5]} 33... g5 {[%clk 0:00:22.9]} 34. Nxg5 {[%clk 0:00:27.7]} 34...
hxg5 {[%clk 0:00:16]} 35. Qxg5+ {[%clk 0:00:27.7]} 35... Qg6 {[%clk 0:00:17.4]}
36. Qe3 {[%clk 0:00:28.5]} 36... Rxd3 {[%clk 0:00:08.7]} 37. Qxd3 {[%clk
0:00:28.3]} 37... Kh7 {[%clk 0:00:04.5]} 38. Rxf5 {[%clk 0:00:25]} 38... Qg1+
{[%clk 0:00:04.7]} 39. Rf1+ {[%clk 0:00:25.3]} 39... Qg6 {[%clk 0:00:04.5]} 40.
Qxg6+ {[%clk 0:00:22.4]} 40... Bxg6 {[%clk 0:00:05]} 41. Kc1 {[%clk 0:00:24.3]}
41... Nd4 {[%clk 0:00:05.2]} 42. c3 {[%clk 0:00:23.9]} 42... Nb3+ {[%clk
0:00:05]} 43. Kd1 {[%clk 0:00:25.1]} 43... Kg7 {[%clk 0:00:06.4]} 44. Rf4 {[%clk
0:00:25.7]} 44... Bf7 {[%clk 0:00:05.9]} 45. Kc2 {[%clk 0:00:24]} 45... Nc5
{[%clk 0:00:06.9]} 46. b4 {[%clk 0:00:24.9]} 46... Bg6+ {[%clk 0:00:08.6]} 47.
Kd2 {[%clk 0:00:24.6]} 47... Ne4+ {[%clk 0:00:10.1]} 48. Kc2 {[%clk 0:00:20.1]}
48... Nf2+ {[%clk 0:00:10.5]} 49. Kb3 {[%clk 0:00:19.6]} 49... Nxh3 {[%clk
0:00:11.9]} 50. Rd4 {[%clk 0:00:20.1]} 50... Bf7+ {[%clk 0:00:12.4]} 51. Ka4
{[%clk 0:00:20.5]} 51... Kf6 {[%clk 0:00:12.5]} 52. c4 {[%clk 0:00:20]} 52...
Ng5 {[%clk 0:00:13.1]} 53. c5 {[%clk 0:00:20.7]} 53... Ne6 {[%clk 0:00:14.1]}
54. Rd6 {[%clk 0:00:21.7]} 54... Ke7 {[%clk 0:00:15]} 55. Ka5 {[%clk 0:00:23]}
55... Be8 {[%clk 0:00:14.8]} 56. Kb6 {[%clk 0:00:23.9]} 56... Nd8 {[%clk
0:00:13.1]} 57. Rh6 {[%clk 0:00:22.5]} 57... Bc6 {[%clk 0:00:12.9]} 58. Rh7+
{[%clk 0:00:22.9]} 58... Ke8 {[%clk 0:00:14.2]} 59. Kc7 {[%clk 0:00:23.1]} 59...
Ne6+ {[%clk 0:00:15]} 60. Kd6 {[%clk 0:00:24]} 60... Nd4 {[%clk 0:00:10.1]} 61.
a4 {[%clk 0:00:23.9]} 61... Nf5+ {[%clk 0:00:03.5]} 62. Ke5 {[%clk 0:00:23.8]}
62... Ne7 {[%clk 0:00:04]} 63. Kf6 {[%clk 0:00:20.4]} 63... Nd5+ {[%clk
0:00:04.6]} 64. Ke5 {[%clk 0:00:21.7]} 64... Nxb4 {[%clk 0:00:05.1]} 65. a5
{[%clk 0:00:23.1]} 65... Nd3+ {[%clk 0:00:05.7]} 66. Kd6 {[%clk 0:00:24.1]}
66... Nb4 {[%clk 0:00:06.8]} 67. Rc7 {[%clk 0:00:23.9]} 67... Kd8 {[%clk
0:00:07.3]} 68. Rh7 {[%clk 0:00:24.7]} 68... Ke8 {[%clk 0:00:08.5]} 69. Rg7
{[%clk 0:00:24.7]} 69... Kf8 {[%clk 0:00:09.2]} 70. Rc7 {[%clk 0:00:25.1]} 70...
Ke8 {[%clk 0:00:10.2]} 71. Rh7 {[%clk 0:00:25.9]} 71... Nd3 {[%clk 0:00:10.9]}
72. Rh4 {[%clk 0:00:26.7]} 72... Nf2 {[%clk 0:00:09]} 73. Kc7 {[%clk 0:00:27.6]}
73... Ne4 {[%clk 0:00:08.2]} 74. Kb6 {[%clk 0:00:24.4]} 74... Nf6 {[%clk
0:00:09.1]} 75. Kc7 {[%clk 0:00:20.1]} 75... Ke7 {[%clk 0:00:06.7]} 76. Rh6
{[%clk 0:00:17.6]} 76... Ke6 {[%clk 0:00:06.9]} 77. Kb6 {[%clk 0:00:18.7]} 77...
Ke5 {[%clk 0:00:06.9]} 78. Rh2 {[%clk 0:00:18.9]} 78... Nd7+ {[%clk 0:00:07.6]}
79. Kc7 {[%clk 0:00:19.1]} 79... Nxc5 {[%clk 0:00:09.1]} 80. Rc2 {[%clk
0:00:19.8]} 80... Kd5 {[%clk 0:00:09.8]} 81. Kb6 {[%clk 0:00:20.1]} 81... Na4+
{[%clk 0:00:09.9]} 82. Ka7 {[%clk 0:00:20.9]} 82... Nc5 {[%clk 0:00:08.6]} 83.
Kb6 {[%clk 0:00:21.4]} 83... Nd7+ {[%clk 0:00:09.1]} 84. Kc7 {[%clk 0:00:22.6]}
84... Ne5 {[%clk 0:00:09.7]} 85. Rb2 {[%clk 0:00:22.7]} 85... Nd3 {[%clk
0:00:08.4]} 86. Rb6 {[%clk 0:00:20.5]} 86... Nc5 {[%clk 0:00:07.7]} 87. Rb1
{[%clk 0:00:19.7]} 87... Kc4 {[%clk 0:00:08.2]} 88. Kb6 {[%clk 0:00:20.9]} 88...
Nb3 {[%clk 0:00:08.5]} 89. Rg1 {[%clk 0:00:19.2]} 89... Nd2 {[%clk 0:00:06.7]}
90. Rc1+ {[%clk 0:00:19.5]} 90... Kd5 {[%clk 0:00:06.4]} 91. Rd1 {[%clk
0:00:20.6]} 91... Kc4 {[%clk 0:00:04.7]} 92. Rxd2 {[%clk 0:00:21.8]} 92... Kb4
{[%clk 0:00:05.9]} 93. Rd4+ {[%clk 0:00:21.4]} 93... Kc3 {[%clk 0:00:05]} 94.
Kc5 {[%clk 0:00:22.5]} 94... Kb3 {[%clk 0:00:05.4]} 95. Rb4+ {[%clk 0:00:23.2]}
95... Ka3 {[%clk 0:00:06.6]} 96. Rf4 {[%clk 0:00:19.7]} 96... Bg2 {[%clk
0:00:07]} 97. Kb6 {[%clk 0:00:16.7]} 97... Bc6 {[%clk 0:00:06.8]} 98. Rc4 {[%clk
0:00:16.8]} 98... Bh1 {[%clk 0:00:06.1]} 99. Rc8 {[%clk 0:00:15.1]} 99... Kb4
{[%clk 0:00:06.4]} 100. Ra8 {[%clk 0:00:16.1]} 100... Bf3 {[%clk 0:00:06.4]}
101. Rxa6 {[%clk 0:00:17.1]} 101... bxa6 {[%clk 0:00:06]} 102. Kxa6 {[%clk
0:00:19]} 102... Ka4 {[%clk 0:00:03.6]} 103. Kb6 {[%clk 0:00:20.9]} 103... Kb4
{[%clk 0:00:05]} 104. a6 {[%clk 0:00:22.7]} 104... Ka4 {[%clk 0:00:06.6]} 105.
a7 {[%clk 0:00:24.4]} 105... Kb4 {[%clk 0:00:07.7]} 106. Kc7 {[%clk 0:00:26.2]}
106... Ka5 {[%clk 0:00:08.8]} 107. Kb8 {[%clk 0:00:28.1]} 107... Kb6 {[%clk
0:00:09.2]} 108. a8=Q {[%clk 0:00:30]} 108... Bxa8 {[%clk 0:00:10.1]} 1/2-1/2

[Event "*** Titled Tuesday 3|2 Blitz"]
[Site "Chess.com"]
[Date "2016.06.07"]
[Round "9"]
[White "Keaton87"]
[Black "mwpchess"]
[Result "1/2-1/2"]
[WhiteElo "2472"]
[BlackElo "2366"]
[TimeControl "180+2"]
[EndTime "12:47:18 PDT"]
[Termination "Game drawn by repetition"]

1. e4 {[%clk 0:03:01.9]} 1... c6 {[%clk 0:03:00.5]} 2. d4 {[%clk 0:03:02.3]}
2... d5 {[%clk 0:03:01.5]} 3. Nd2 {[%clk 0:03:03.9]} 3... dxe4 {[%clk
0:03:02.2]} 4. Nxe4 {[%clk 0:03:05.8]} 4... Bf5 {[%clk 0:03:02.5]} 5. Ng3 {[%clk
0:03:06.4]} 5... Bg6 {[%clk 0:03:03.4]} 6. h4 {[%clk 0:03:08.1]} 6... h6 {[%clk
0:03:04.2]} 7. Nf3 {[%clk 0:03:09.7]} 7... Nd7 {[%clk 0:03:04.5]} 8. h5 {[%clk
0:03:10.2]} 8... Bh7 {[%clk 0:03:05.5]} 9. Bd3 {[%clk 0:03:11.9]} 9... Bxd3
{[%clk 0:03:06.1]} 10. Qxd3 {[%clk 0:03:13.8]} 10... e6 {[%clk 0:03:07.1]} 11.
Bd2 {[%clk 0:03:15.2]} 11... Ngf6 {[%clk 0:03:07.4]} 12. O-O-O {[%clk
0:03:16.6]} 12... Be7 {[%clk 0:03:08.3]} 13. Qe2 {[%clk 0:03:17.1]} 13... O-O
{[%clk 0:03:07.6]} 14. Nf1 {[%clk 0:03:18.5]} 14... c5 {[%clk 0:03:08]} 15. g4
{[%clk 0:03:19.8]} 15... cxd4 {[%clk 0:03:03.5]} 16. g5 {[%clk 0:03:20.8]} 16...
Nd5 {[%clk 0:03:04.2]} 17. gxh6 {[%clk 0:03:21.9]} 17... Qb6 {[%clk 0:02:27.2]}
18. Rg1 {[%clk 0:03:20.9]} 18... Ba3 {[%clk 0:02:00.5]} 19. Rxg7+ {[%clk
0:03:21.2]} 19... Kh8 {[%clk 0:02:01.2]} 20. bxa3 {[%clk 0:03:22.6]} 20... Nc3
{[%clk 0:02:01]} 21. Bxc3 {[%clk 0:03:24.2]} 21... dxc3 {[%clk 0:02:01.3]} 22.
Rh7+ {[%clk 0:03:25.7]} 22... Kg8 {[%clk 0:01:56.7]} 23. Rg7+ {[%clk 0:03:26.9]}
23... Kh8 {[%clk 0:01:57.7]} 24. Rh7+ {[%clk 0:03:28.4]} 24... Kg8 {[%clk
0:01:58.6]} 25. Rg7+ {[%clk 0:03:29.9]} 25... Kh8 {[%clk 0:01:59.7]} 26. Rh7+
{[%clk 0:03:31.4]} 26... Kg8 {[%clk 0:02:00.8]} 27. Rg7+ {[%clk 0:03:32.9]}
27... Kh8 {[%clk 0:02:01.8]} 28. Rh7+ {[%clk 0:03:34.4]} 28... Kg8 {[%clk
0:02:02.9]} 29. Rg7+ {[%clk 0:03:35.6]} 29... Kh8 {[%clk 0:02:03.9]} 1/2-1/2

[Event "*** Titled Tuesday 3|2 Blitz"]
[Site "Chess.com"]
[Date "2016.06.07"]
[Round "9"]
[White "Malev212"]
[Black "DrHolmes13"]
[Result "1-0"]
[WhiteElo "2281"]
[BlackElo "2393"]
[TimeControl "180+2"]
[EndTime "12:49:55 PDT"]
[Termination "Malev212 won by resignation"]

1. Nf3 {[%clk 0:03:01.9]} 1... d6 {[%clk 0:02:58.7]} 2. g3 {[%clk 0:03:02.6]}
2... g6 {[%clk 0:02:58.2]} 3. Bg2 {[%clk 0:03:03.4]} 3... Bg7 {[%clk 0:02:59.8]}
4. d4 {[%clk 0:03:03.9]} 4... Nf6 {[%clk 0:03:01.5]} 5. b3 {[%clk 0:03:05.1]}
5... O-O {[%clk 0:03:00.8]} 6. Bb2 {[%clk 0:03:06.6]} 6... c5 {[%clk 0:03:02.3]}
7. c4 {[%clk 0:03:04.2]} 7... Qa5+ {[%clk 0:02:50.8]} 8. Bc3 {[%clk 0:02:57.3]}
8... Qb6 {[%clk 0:02:48.3]} 9. Nbd2 {[%clk 0:02:50.2]} 9... Bf5 {[%clk
0:02:36.2]} 10. O-O {[%clk 0:02:49.7]} 10... Ne4 {[%clk 0:02:31.2]} 11. Nxe4
{[%clk 0:02:46.8]} 11... Bxe4 {[%clk 0:02:33.1]} 12. dxc5 {[%clk 0:02:47.2]}
12... Qxc5 {[%clk 0:02:33.6]} 13. Bxg7 {[%clk 0:02:47.4]} 13... Kxg7 {[%clk
0:02:35.3]} 14. Qd4+ {[%clk 0:02:47.4]} 14... Qxd4 {[%clk 0:02:34.7]} 15. Nxd4
{[%clk 0:02:48.7]} 15... Bxg2 {[%clk 0:02:35.7]} 16. Kxg2 {[%clk 0:02:49.6]}
16... Nc6 {[%clk 0:02:34.4]} 17. Nb5 {[%clk 0:02:47.4]} 17... Rac8 {[%clk
0:02:30.3]} 18. Rfd1 {[%clk 0:02:45.7]} 18... a6 {[%clk 0:02:27.3]} 19. Nc3
{[%clk 0:02:46.5]} 19... Nb4 {[%clk 0:02:24]} 20. Rac1 {[%clk 0:02:46]} 20...
Rfd8 {[%clk 0:02:18.6]} 21. e4 {[%clk 0:02:43.8]} 21... Nc6 {[%clk 0:02:11.1]}
22. f4 {[%clk 0:02:41.8]} 22... e5 {[%clk 0:02:05.2]} 23. Rd3 {[%clk 0:02:32.7]}
23... Nd4 {[%clk 0:01:49.4]} 24. Rcd1 {[%clk 0:02:25.2]} 24... b5 {[%clk
0:01:47.6]} 25. cxb5 {[%clk 0:02:22.9]} 25... axb5 {[%clk 0:01:49.5]} 26. R1d2
{[%clk 0:02:23.5]} 26... b4 {[%clk 0:01:41.5]} 27. Nd5 {[%clk 0:02:21.6]} 27...
Rb8 {[%clk 0:01:34.8]} 28. Rxd4 {[%clk 0:02:19.8]} 28... exd4 {[%clk 0:01:35.4]}
29. Rxd4 {[%clk 0:02:21]} 29... Rb6 {[%clk 0:01:20]} 30. Nxb6 {[%clk 0:02:20.7]}
30... Rb8 {[%clk 0:01:07.7]} 31. Rxd6 {[%clk 0:02:18.7]} 31... Kf8 {[%clk
0:01:08.2]} 32. Nd7+ {[%clk 0:02:17.2]} 32... Ke7 {[%clk 0:01:09.5]} 33. Nxb8
{[%clk 0:02:18]} 33... Kxd6 {[%clk 0:01:11.4]} 34. Na6 {[%clk 0:02:19]} 1-0

[Event "*** Titled Tuesday 3|2 Blitz"]
[Site "Chess.com"]
[Date "2016.06.07"]
[Round "9"]
[White "Keranke"]
[Black "dretch"]
[Result "0-1"]
[WhiteElo "2574"]
[BlackElo "2609"]
[TimeControl "180+2"]
[EndTime "12:50:04 PDT"]
[Termination "dretch won by resignation"]

1. c4 {[%clk 0:03:01.9]} 1... c6 {[%clk 0:02:56.1]} 2. g3 {[%clk 0:03:03.8]}
2... d5 {[%clk 0:02:57.1]} 3. Bg2 {[%clk 0:03:05.7]} 3... dxc4 {[%clk
0:02:57.9]} 4. Nf3 {[%clk 0:03:06.1]} 4... Nd7 {[%clk 0:02:57.9]} 5. Na3 {[%clk
0:03:01.8]} 5... Nb6 {[%clk 0:02:58.5]} 6. Ne5 {[%clk 0:02:45.8]} 6... Qd4
{[%clk 0:02:58.1]} 7. Nexc4 {[%clk 0:02:46.9]} 7... Nxc4 {[%clk 0:02:56.6]} 8.
Qa4 {[%clk 0:02:48.1]} 8... Be6 {[%clk 0:02:53.3]} 9. Bxc6+ {[%clk 0:02:40.3]}
9... Kd8 {[%clk 0:02:47.3]} 10. Bxb7 {[%clk 0:02:38]} 10... Rb8 {[%clk 0:02:47]}
11. Ba6 {[%clk 0:02:37.1]} 11... Qd5 {[%clk 0:02:41.7]} 12. O-O {[%clk
0:02:31.9]} 12... Qa5 {[%clk 0:02:36.3]} 13. Qxa5+ {[%clk 0:02:10.7]} 13... Nxa5
{[%clk 0:02:37.2]} 14. d3 {[%clk 0:02:07.1]} 14... Bc8 {[%clk 0:02:34.8]} 15.
Bf4 {[%clk 0:02:01.6]} 15... Rb6 {[%clk 0:02:29.6]} 16. Bxc8 {[%clk 0:02:01]}
16... Kxc8 {[%clk 0:02:30.8]} 17. Rfc1+ {[%clk 0:01:58.7]} 17... Kb7 {[%clk
0:02:20.2]} 18. Rc7+ {[%clk 0:01:56.8]} 18... Ka6 {[%clk 0:02:20.4]} 19. Rc8
{[%clk 0:01:52.5]} 19... Nf6 {[%clk 0:02:21.5]} 20. b3 {[%clk 0:01:31.1]} 20...
g6 {[%clk 0:02:19.6]} 21. Rac1 {[%clk 0:01:20.1]} 21... Bg7 {[%clk 0:02:17.6]}
22. Rxh8 {[%clk 0:01:08.8]} 22... Bxh8 {[%clk 0:02:19.5]} 23. Rc8 {[%clk
0:00:58.8]} 23... Bg7 {[%clk 0:02:19.6]} 24. Be3 {[%clk 0:00:59.7]} 24... Rc6
{[%clk 0:02:18.5]} 25. Ra8 {[%clk 0:01:00.7]} 25... Rc7 {[%clk 0:02:16.7]} 26.
b4 {[%clk 0:01:00.2]} 26... Nc6 {[%clk 0:02:17.3]} 0-1

[Event "*** Titled Tuesday 3|2 Blitz"]
[Site "Chess.com"]
[Date "2016.06.07"]
[Round "9"]
[White "SabinaFoisor"]
[Black "Grootneus"]
[Result "1-0"]
[WhiteElo "2219"]
[BlackElo "2090"]
[TimeControl "180+2"]
[EndTime "12:50:11 PDT"]
[Termination "SabinaFoisor won by resignation"]

1. d4 {[%clk 0:03:01.9]} 1... Nf6 {[%clk 0:02:59.5]} 2. c4 {[%clk 0:03:01.7]}
2... c5 {[%clk 0:03:00.6]} 3. d5 {[%clk 0:02:58.1]} 3... b5 {[%clk 0:03:01.3]}
4. cxb5 {[%clk 0:02:59.3]} 4... a6 {[%clk 0:03:02.7]} 5. bxa6 {[%clk 0:02:59.2]}
5... g6 {[%clk 0:03:04.3]} 6. Nc3 {[%clk 0:02:59.5]} 6... Bxa6 {[%clk
0:03:05.8]} 7. Nf3 {[%clk 0:02:59.5]} 7... Bg7 {[%clk 0:03:06]} 8. g3 {[%clk
0:02:59.6]} 8... d6 {[%clk 0:03:05.9]} 9. Bg2 {[%clk 0:03:00.4]} 9... Nbd7
{[%clk 0:03:07]} 10. O-O {[%clk 0:03:00]} 10... Nb6 {[%clk 0:03:07.8]} 11. Rb1
{[%clk 0:02:59.1]} 11... Bc4 {[%clk 0:03:04.8]} 12. Nh4 {[%clk 0:02:32.9]} 12...
Bxa2 {[%clk 0:03:03.1]} 13. Nxa2 {[%clk 0:02:32.9]} 13... Rxa2 {[%clk 0:03:05]}
14. b4 {[%clk 0:02:29.6]} 14... cxb4 {[%clk 0:02:48.2]} 15. Rxb4 {[%clk
0:02:29.5]} 15... Ra5 {[%clk 0:02:36.8]} 16. Qb3 {[%clk 0:02:19.4]} 16... Nbd7
{[%clk 0:02:27.1]} 17. Bd2 {[%clk 0:02:09.4]} 17... O-O {[%clk 0:02:23.6]} 18.
e4 {[%clk 0:01:55]} 18... Nc5 {[%clk 0:02:18.9]} 19. Qe3 {[%clk 0:01:53.3]}
19... Ra2 {[%clk 0:02:05.5]} 20. e5 {[%clk 0:01:50.1]} 20... Ng4 {[%clk
0:02:04.8]} 21. Rxg4 {[%clk 0:01:49.4]} 21... Bxe5 {[%clk 0:01:51.8]} 22. Nf5
{[%clk 0:01:48.5]} 22... e6 {[%clk 0:01:33.5]} 23. Nh6+ {[%clk 0:01:36.9]} 23...
Kh8 {[%clk 0:01:32.8]} 24. Bc3 {[%clk 0:01:37]} 24... f6 {[%clk 0:01:13.8]} 25.
Bxe5 {[%clk 0:01:29.3]} 25... dxe5 {[%clk 0:01:12.7]} 26. Qxc5 {[%clk 0:01:27]}
1-0